[Event "Charlotte IM-C May 2022"]
[Site "Charlotte"]
[Date "2022.05.07"]
[Round "6.1"]
[White "Martin Del Campo Cardenas, Roberto Abel"]
[Black "Zapata, Alonso"]
[Result "1/2-1/2"]
[WhiteElo "2263"]
[BlackElo "2367"]
[Annotator "TA"]
[PlyCount "33"]
[EventDate "2022.05.04"]
[EventType "tourn"]
[EventCountry "USA"]
[SourceTitle "playchess.com"]
[Source "ChessBase"]
[SourceQuality "1"]
[TimeControl "5400+30"]

{[%evp 16,17,17,17]} 1. e4 {[%emt 0:00:24]} e5 {[%emt 0:00:37]} 2. Nf3 {[%emt 0:00:04]} Nc6 {[%emt 0:00:06]} 3. Bb5 {[%emt 0:00:05]} a6 {[%emt 0:00:12]} 4. Bxc6 {[%emt 0:00:03]} dxc6 {[%emt 0:00:08]} 5. O-O {[%emt 0:00:04]} f6 {[%emt 0:00:13]} 6. d4 {[%emt 0:00:04]} exd4 {[%emt 0:00:10]} 7. Nxd4 {[%emt 0:00:04]} c5 {[%emt 0:00:13]} 8. Nb3 {[%emt 0:00:06]} Qxd1 {[%emt 1:32:51]} 9. Rxd1 {[%emt 0:00:37] [#]} {Predecessor:} b6 $146 {C69: Ruy Lopez: Exchange Variation with 5 0-0 f6.} 10. Bf4 Ra7 11. Nc3 Ne7 12. a4 Ng6 13. Bg3 Be6 14. a5 b5 15. Nd5 Bd6 16. f3 c4 17. Bf2 {1-0 (26) Guseinov,G (2661)-Alekseenko,K (2702) Chess.com INT 2022} 1/2-1/2

[Event "Charlotte IM-C May 2022"]
[Site "Charlotte"]
[Date "2022.05.07"]
[Round "6.2"]
[White "Johnson, Donald"]
[Black "Canty, James"]
[Result "0-1"]
[ECO "B62"]
[WhiteElo "2102"]
[BlackElo "2225"]
[Annotator "TA"]
[PlyCount "88"]
[EventDate "2022.05.04"]
[EventType "tourn"]
[EventCountry "USA"]
[SourceTitle "playchess.com"]
[Source "ChessBase"]
[SourceQuality "1"]
[TimeControl "5400+30"]

{[%evp 15,88,29,29,39,37,21,29,0,8,-27,64,-79,-75,-254,-253,-250,-220,-222,-194,-172,-174,-387,-262,-650,-639,-660,-651,-656,-639,-642,-647,-646,-638,-724,-722,-709,-686,-672,-680,-800,-782,-811,-870,-916,-923,-921,-919,-916,-912,-893,-891,-851,-767,-910,-880,-1004,-997,-1094,-1014,-1544,-1508,-1382,-1363,-6403,-6395,-29976,-29977,-29976,-29977,-29961,-8658,-29984,-29985,-29983,-29984]} 1. e4 {[%emt 0:03:22]} c5 {[%emt 0:00:05]} 2. Nf3 {[%emt 0:00:01]} d6 {[%emt 0:00:08]} 3. d4 {[%emt 0:00:05]} cxd4 {[%emt 0:00:04]} 4. Nxd4 {[%emt 0:00:04]} Nf6 {[%emt 0:00:06]} 5. Nc3 {[%emt 0:00:06]} Nc6 {[%emt 0:00:03]} 6. Bg5 {[%emt 0:00:07]} e6 {[%emt 0:00:08]} 7. Qd3 {[%emt 0:00:39]} Be7 {[%emt 0:00:03] Recently 7...Bd7 got a lot of attention.} 8. O-O-O {[%emt 0:00:15]} O-O {[%emt 0:00:05]} 9. h4 {[%emt 0:00:14] B62: Sicilian: Richter-Rauzer: 6...e6: Unusual White 7th moves.} Qb6 {[%emt 0:00:38]} 10. Be2 {[%emt 0:23:25] [#]} Bd7 $146 {[%emt 0:01:19]} ({Predecessor:} 10... Rd8 11. Nxc6 bxc6 12. Qg3 Rb8 13. b3 Kh8 14. e5 dxe5 15. Qxe5 Ba6 16. Na4 Qb7 {½-½ (42) Kosakowski,J (2437)-Fiedorek,M (2337) Pokrzywna 2021}) 11. Nxc6 {[%emt 0:04:17] White has an edge.} Bxc6 {[%emt 0:03:22]} 12. h5 {[%emt 0:04:43]} Rac8 {[%emt 0:03:38]} (12... h6 $1 $11 13. Be3 Qc7) 13. Qf3 {[%emt 0:23:54]} (13. h6 $14 g6 14. Qh3) 13... Qa5 {[%emt 0:06:22]} 14. Bd2 {[%emt 0:02:35] [#] White does not recover from this.} (14. Bh4 $17 {was called for.}) 14... Nxe4 $1 $19 {[%emt 0:06:41][%mdl 512]} 15. Nxe4 {[%emt 0:05:32]} Qxa2 {[%emt 0:00:05][%cal Ra2a1]} 16. Bc3 {[%emt 0:07:07][%cal Oe2c4] [#]} Bg5+ $1 {[%emt 0:03:27][%mdl 512]} 17. Nxg5 {[%emt 0:00:14]} Bxf3 {[%emt 0:00:04] Really sharp!} 18. gxf3 {[%emt 0:01:52]} (18. Nxf3 Rc5 19. Nd4) 18... b5 {[%emt 0:00:54][%cal Ob5b4] Hoping for ...b4!} 19. Ne4 $2 {[%emt 0:06:45]} (19. Bd3 h6 20. Ne4) 19... b4 {[%emt 0:01:57]} 20. Bxb4 {[%emt 0:01:40] Threatens to win with Nc3.} Qa1+ {[%emt 0:00:07]} 21. Kd2 {[%emt 0:00:02]} Qxb2 {[%emt 0:00:14]} 22. Bc3 {[%emt 0:02:12] [#]} Rxc3 {[%emt 0:00:14][%mdl 512]} 23. Nxc3 {[%emt 0:00:04]} Rc8 {[%emt 0:00:06]} 24. Bd3 {[%emt 0:00:29]} Qxc3+ {[%emt 0:00:08]} 25. Ke2 {[%emt 0:00:06]} Qe5+ {[%emt 0:01:03]} 26. Kf1 {[%emt 0:00:14]} a5 {[%emt 0:00:18]} 27. Rh4 {[%emt 0:00:09]} Qf6 {[%emt 0:00:49]} 28. Ra4 {[%emt 0:00:13]} Qxf3 {[%emt 0:00:18]} 29. Rda1 {[%emt 0:00:01]} Qh1+ {[%emt 0:00:34]} 30. Ke2 {[%emt 0:00:01]} Qxh5+ {[%emt 0:00:11]} 31. Kd2 {[%emt 0:00:02]} Qg5+ {[%emt 0:00:26]} 32. Ke2 {[%emt 0:00:03]} Qe5+ {[%emt 0:00:17]} 33. Kd2 {[%emt 0:00:04]} Qc3+ {[%emt 0:00:21]} 34. Ke2 {[%emt 0:00:04]} Rc5 {[%emt 0:00:12]} 35. Rb1 {[%emt 0:00:13]} g6 {[%emt 0:00:42]} 36. Rf4 {[%emt 0:00:30]} Qe5+ {[%emt 0:00:33]} 37. Kf3 {[%emt 0:00:02]} Qh5+ {[%emt 0:00:14]} 38. Ke3 {[%emt 0:00:17]} Qh6 {[%emt 0:00:44]} 39. Rb8+ {[%emt 0:00:11]} Kg7 {[%emt 0:00:08] ( -> ...Re5+)} 40. Rb7 {[%emt 0:00:01]} Re5+ {[%emt 0:00:24]} 41. Be4 {[%emt 0:00:07]} d5 {[%emt 0:01:09]} 42. Rbxf7+ {[%emt 0:00:09]} Kg8 {[%emt 0:00:04]} 43. Rf8+ {[%emt 0:00:07]} Qxf8 {[%emt 0:00:06]} 44. Rxf8+ {[%emt 0:00:04]} Kxf8 {[%emt 0:00:04] Weighted Error Value: White=0.74/Black=0.12 (very precise)} 0-1

[Event "Charlotte IM-C May 2022"]
[Site "Charlotte"]
[Date "2022.05.07"]
[Round "6.3"]
[White "Wang, Tianqi"]
[Black "Rorrer, Grayson"]
[Result "1-0"]
[ECO "B22"]
[WhiteElo "2331"]
[BlackElo "2204"]
[Annotator "TA"]
[PlyCount "51"]
[EventDate "2022.05.04"]
[EventType "tourn"]
[EventCountry "USA"]
[SourceTitle "playchess.com"]
[Source "ChessBase"]
[SourceQuality "1"]
[TimeControl "5400+30"]

{[%evp 11,51,27,18,20,24,0,101,56,77,58,65,75,215,198,197,68,76,66,58,28,18,23,30,22,23,23,141,135,129,134,394,379,480,467,479,478,477,459,477,477,588,412]} 1. e4 {[%emt 0:00:03]} c5 {[%emt 0:00:06]} 2. c3 {[%emt 0:00:05]} d5 {[%emt 0:00:04]} 3. exd5 {[%emt 0:00:03]} Qxd5 {[%emt 0:00:08]} 4. d4 {[%emt 0:00:06]} Nf6 {[%emt 0:00:07]} 5. Nf3 {[%emt 0:00:03]} Bg4 {[%emt 0:00:09]} 6. Nbd2 {[%emt 0:00:03]} Nc6 {[%emt 0:00:42][%cal Rc5d4]} 7. dxc5 {[%emt 0:00:21] B22: Sicilian: 2 c3.} e6 {[%emt 0:00:53] [#]} 8. b4 $146 {[%emt 0:06:12]} ({Predecessor:} 8. Nb3 Qxd1+ 9. Kxd1 a5 10. a4 e5 11. Ke1 Be6 12. Nfd2 Be7 13. Bb5 O-O 14. Nc4 Rfc8 {1-0 (49) Gonzalez Sanchez,F (2242)-Duran Vallverdu,J (2317) ICCF email 2016}) 8... O-O-O {[%emt 1:32:21]} (8... a5 $11 {keeps the balance.}) 9. Bc4 {[%emt 0:19:34] White is better.} Qh5 {[%emt 0:00:00]} 10. O-O {[%emt 0:06:11] [#] And now Qa4 would win.} Ne5 $1 {[%emt 0:00:00] aiming for ...Bxf3.} 11. Qe2 {[%emt 0:05:06]} Nxc4 {[%emt 0:00:00]} (11... Bxf3 $16 12. Nxf3 Nxf3+ 13. gxf3 Nd5) 12. Qxc4 $18 {[%emt 0:02:13]} ({Don't take} 12. Nxc4 $6 Bxf3 13. gxf3 (13. Qxf3 Qxf3 14. gxf3 Be7 $14) 13... Qg6+ 14. Kh1 Qd3 15. Qxd3 Rxd3 $16) 12... Qd5 {[%emt 0:00:00]} 13. Qxd5 {[%emt 0:01:07]} (13. Qb5 $18) 13... Nxd5 $14 {[%emt 0:00:00]} 14. Ne5 {[%emt 0:00:22]} Bh5 {[%emt 0:00:00]} 15. Ne4 {[%emt 0:00:11] Black must now prevent g4. Pair of Knights!} (15. g4 $5 {[%cal Rg4h5]} Bg6 16. Nxg6 hxg6 17. Nc4 $14) 15... f6 {[%emt 0:00:00]} 16. Nf3 {[%emt 0:18:00]} Be7 {[%emt 0:00:00]} 17. a3 $36 {[%emt 0:12:55][%mdl 2048] White has some pressure.} Bg6 {[%emt 0:00:00]} 18. Re1 {[%emt 0:02:32]} f5 {[%emt 0:00:00]} (18... Nc7 $11 {remains equal.}) 19. Nd6+ $16 {[%emt 0:00:41]} Bxd6 {[%emt 0:00:00]} 20. cxd6 {[%emt 0:00:07]} Nxc3 {[%emt 0:06:00][%mdl 8192] [#]} (20... Rxd6 $16 {was called for.} 21. c4 Nf6) 21. Bg5 $1 $18 {[%emt 0:00:33]} ({Not} 21. Bb2 Nd5 22. Rxe6 Rhe8 23. Rxe8 Bxe8 24. Bxg7 Rxd6 $16) 21... Ne4 {[%emt 0:00:00]} 22. Rac1+ {[%emt 0:01:29][%cal Ba1c1,Bc1c7,Bc7g7][%mdl 32] White is clearly winning.} Kb8 {[%emt 0:01:00]} 23. Bxd8 {[%emt 0:00:26]} Rxd8 {[%emt 0:00:00]} 24. Rc7 {[%emt 0:00:01]} Nxd6 {[%emt 0:00:00]} 25. Rxg7 {[%emt 0:24:36]} Nf7 {[%emt 0:01:30]} 26. h4 {[%emt 0:00:00] Weighted Error Value: White=0.12 (very precise) /Black=0.50} 1-0

[Event "Charlotte IM-C May 2022"]
[Site "Charlotte"]
[Date "2022.05.07"]
[Round "6.5"]
[White "King, Alexander"]
[Black "Andrews, Todd"]
[Result "1-0"]
[ECO "B06"]
[WhiteElo "2283"]
[BlackElo "2209"]
[Annotator "TA"]
[PlyCount "99"]
[EventDate "2022.05.04"]
[EventType "tourn"]
[EventCountry "USA"]
[SourceTitle "playchess.com"]
[Source "ChessBase"]
[SourceQuality "1"]
[TimeControl "5400+30"]

{[%evp 9,99,160,162,170,167,161,176,199,187,175,201,200,185,186,209,186,178,174,201,182,233,240,232,142,150,143,142,126,127,127,136,104,104,104,104,106,130,120,120,104,104,104,104,104,125,105,105,0,121,105,106,106,147,117,157,140,255,259,253,258,256,249,423,418,477,472,836,812,1915,1897,1785,1776,2389,2128,5181,3268,29976,29977,29979,29978,29980,29981,29981,29982,29984,29985,29984,29985,29987,29988,29987,29983]} 1. d4 {[%emt 0:00:03]} g6 {[%emt 0:06:19]} 2. e4 {[%emt 0:01:51]} Bg7 {[%emt 0:00:17]} 3. Nc3 {[%emt 0:00:31]} c5 {[%emt 0:00:26]} 4. dxc5 {[%emt 0:00:21]} Na6 {[%emt 0:01:15]} 5. Bxa6 {[%emt 0:04:25]} bxa6 {[%emt 0:04:15]} 6. Nge2 {[%emt 0:08:22] B06: Modern Defence.} Qa5 {[%emt 0:10:43] [#]} 7. Be3 $146 {[%emt 0:04:33]} ({Predecessor:} 7. O-O Qxc5 8. Be3 Qa5 9. Bd4 e5 10. Be3 Nf6 11. Qd6 Bb7 12. Bc5 Ng8 13. f4 {0-1 (40) Leopold,C (1984)-Kampmann,L (2182) Bayern 2011}) 7... Rb8 {[%emt 0:04:17]} 8. Rb1 {[%emt 0:07:31] White is clearly better.} Nf6 {[%emt 0:26:29]} 9. f3 {[%emt 0:06:05]} O-O {[%emt 0:00:08]} 10. O-O {[%emt 0:01:13]} Qc7 {[%emt 0:08:40]} 11. Qe1 {[%emt 0:03:26]} a5 {[%emt 0:03:25]} 12. Qf2 {[%emt 0:04:26]} Ba6 {[%emt 0:03:18]} 13. Rfd1 {[%emt 0:02:16]} Rb7 {[%emt 0:03:08]} 14. b3 {[%emt 0:06:40]} e6 {[%emt 0:03:23]} (14... Bxe2 $142 15. Nxe2 Rfb8) 15. Bf4 {[%emt 0:01:10]} e5 {[%emt 0:03:46]} 16. Bg5 {[%emt 0:01:35] [#] Black must now prevent Bxf6.} Bxe2 {[%emt 0:00:19]} 17. Nxe2 {[%emt 0:02:08]} Rc8 {[%emt 0:00:11]} 18. Be3 {[%emt 0:08:11]} Bf8 {[%emt 0:00:50][%cal Rf8c5]} 19. c4 {[%emt 0:00:22]} Bxc5 {[%emt 0:01:15]} 20. Bxc5 {[%emt 0:01:13]} Qxc5 {[%emt 0:00:02]} 21. Qxc5 {[%emt 0:01:09]} Rxc5 {[%emt 0:00:02]} 22. Nc3 {[%emt 0:01:06]} Kg7 {[%emt 0:04:12]} 23. Rbc1 {[%emt 0:01:14]} h5 {[%emt 0:00:27]} 24. h4 {[%emt 0:00:55]} Kf8 {[%emt 0:02:45]} 25. Rd3 {[%emt 0:04:30]} Ke7 {[%emt 0:01:25]} 26. Rcd1 {[%emt 0:00:11]} Rbc7 {[%emt 0:00:59]} 27. Rd6 {[%emt 0:01:35]} R5c6 {[%emt 0:05:06] Inhibits Ra6.} 28. R6d3 {[%emt 0:04:18] White is much more active.} Rc5 $1 {[%emt 0:00:02]} 29. Kf2 {[%emt 0:00:25] White stays focused until the end.} Rb7 {[%emt 0:00:34]} 30. Ke3 {[%emt 0:00:40]} Rbc7 {[%emt 0:00:35]} 31. Kd2 {[%emt 0:01:01]} Rb7 {[%emt 0:00:23] [#]} 32. Kc2 $1 {[%emt 0:00:06]} Ne8 {[%emt 0:04:05]} (32... Kf8 $16 33. Nd5 Ne8) 33. Rd5 $18 {[%emt 0:04:11]} Rxd5 {[%emt 0:00:38]} 34. Rxd5 {[%emt 0:00:08][%mdl 4096] Endgame KRN-KRN} d6 {[%emt 0:00:03]} 35. Rxa5 {[%emt 0:00:15]} f5 $2 {[%emt 0:00:14]} (35... Nc7 36. a4 f6) 36. Nb5 {[%emt 0:01:21]} fxe4 {[%emt 0:01:05]} 37. fxe4 {[%emt 0:00:04]} g5 {[%emt 0:01:19]} (37... Nf6 $142 38. Kd3 (38. Rxa7 Rxa7 39. Nxa7 Nxe4 $18) (38. Nxa7 Nxe4 39. Nb5 Rb8 $18) 38... Ng4) 38. hxg5 {[%emt 0:00:56]} Kf7 {[%emt 0:00:04]} 39. Rxa7 {[%emt 0:02:08]} Rxa7 {[%emt 0:00:02]} 40. Nxa7 {[%emt 0:00:06] KN-KN} Kg6 {[%emt 0:00:02]} 41. Nb5 {[%emt 0:00:36] And now a4 would win.} Kxg5 {[%emt 0:00:02]} 42. a4 {[%emt 0:00:22][%cal Ba2a4,Ba4a5,Ba5a6,Ba6a7][%mdl 32] Threatening mate with a5.} Kf4 {[%emt 0:00:26]} 43. a5 {[%emt 0:00:27] White mates.} Nf6 {[%emt 0:00:06]} 44. a6 {[%emt 0:00:39]} Nd7 {[%emt 0:00:02]} 45. a7 {[%emt 0:00:06]} Nb6 {[%emt 0:00:01]} 46. Nxd6 {[%emt 0:00:12]} Kg3 {[%emt 0:00:04]} 47. c5 {[%emt 0:00:23]} Na8 {[%emt 0:00:02]} 48. b4 {[%emt 0:00:54]} Kxg2 {[%emt 0:00:05]} 49. Nf5 {[%emt 0:00:37]} Kf3 {[%emt 0:00:12]} 50. Kd3 {[%emt 0:00:12] Weighted Error Value: White=0.10 (very precise) /Black=0.29 (precise)} 1-0

[Event "Charlotte IM-C May 2022"]
[Site "Charlotte"]
[Date "2022.05.07"]
[Round "7.1"]
[White "Andrews, Todd"]
[Black "Martin Del Campo Cardenas, Roberto Abel"]
[Result "1/2-1/2"]
[ECO "B56"]
[WhiteElo "2209"]
[BlackElo "2263"]
[Annotator "TA"]
[PlyCount "33"]
[EventDate "2022.05.04"]
[EventType "tourn"]
[EventCountry "USA"]
[SourceTitle "playchess.com"]
[Source "ChessBase"]
[SourceQuality "1"]
[TimeControl "5400+30"]

{[%evp 14,33,45,45,33,57,45,56,52,45,38,22,29,31,36,0,0,-87,-80,-76,-60,-78]} 1. e4 {[%emt 0:00:03]} c5 {[%emt 0:00:15]} 2. Nf3 {[%emt 0:00:08][%cal Bg1f3,Bf3d4,Bd4f5][%mdl 32]} d6 {[%emt 0:00:48]} 3. d4 {[%emt 0:00:07]} cxd4 {[%emt 0:00:06]} 4. Nxd4 {[%emt 0:00:04]} Nf6 {[%emt 0:00:11]} 5. Nc3 {[%emt 0:00:05]} e5 {[%emt 0:01:24]} 6. Bb5+ {[%emt 0:00:33][%cal Bf1b5,Bb5a4,Ba4b3,Bb3d5][%mdl 32]} Nbd7 {[%emt 0:00:08]} 7. Nf5 {[%emt 0:00:35]} a6 {[%emt 0:00:05]} 8. Ba4 {[%emt 0:01:11]} b5 {[%emt 0:01:20] B56: Classical Sicilian: Unusual Lines.} 9. Bb3 {[%emt 0:00:11]} Nc5 {[%emt 0:00:04]} 10. Bg5 {[%emt 0:03:00]} Bxf5 {[%emt 0:02:31] White is slightly better.} 11. exf5 {[%emt 0:00:08]} Be7 {[%emt 0:00:12][%cal Bf8e7,Be7f6,Bf6c3][%mdl 32]} 12. Bxf6 {[%emt 0:01:58]} Bxf6 {[%emt 0:00:02]} 13. Bd5 {[%emt 0:00:25] Inhibits e4. Hoping for Bc6+.} Rc8 {[%emt 0:01:01][%cal Oe5e4] Inhibits Bc6+.} 14. O-O {[%emt 0:04:15]} O-O {[%emt 0:00:17][%cal Oe5e4] [#]} 15. b4 $146 {[%emt 0:01:44] [#]} (15. Rb1 $11) ({Predecessor:} 15. Re1 e4 16. Nxe4 Nxe4 17. Rxe4 Bxb2 18. Rb1 Bc3 19. Qd3 Rc5 20. a4 b4 21. Rd1 {1-0 (67) Olivier,J (2389)-Vernay,C (2293) Grenoble 2006}) 15... e4 $1 $17 {[%emt 0:01:01]} 16. bxc5 {[%emt 0:01:43][%cal Oc3e4]} Bxc3 {[%emt 0:00:04]} 17. Rb1 {[%emt 0:01:55] Weighted Error Value: White=0.27 (precise) /Black=0.00 (flawless)} 1/2-1/2

[Event "Charlotte IM-C May 2022"]
[Site "Charlotte"]
[Date "2022.05.08"]
[Round "7.2"]
[White "Fawole, John Oyeyemi"]
[Black "King, Alexander"]
[Result "0-1"]
[ECO "D36"]
[WhiteElo "2118"]
[BlackElo "2283"]
[Annotator "TA"]
[PlyCount "78"]
[EventDate "2022.05.04"]
[EventType "tourn"]
[EventCountry "USA"]
[SourceTitle "playchess.com"]
[Source "ChessBase"]
[SourceQuality "1"]
[TimeControl "5400+30"]

{[%evp 17,78,19,31,25,25,18,23,10,15,6,17,8,16,0,7,0,13,0,0,0,0,-4,39,-125,-118,-126,-117,-427,-429,-429,-429,-427,-418,-493,-481,-491,-477,-529,-526,-553,-546,-612,-612,-620,-614,-612,-604,-604,-604,-604,-603,-601,-583,-565,-554,-596,-577,-766,-758,-885,-883,-822,-803]} 1. d4 {[%emt 0:02:16]} Nf6 {[%emt 0:00:33]} 2. c4 {[%emt 0:00:12]} e6 {[%emt 0:00:06]} 3. Nc3 {[%emt 0:00:05]} d5 {[%emt 0:00:10]} 4. cxd5 {[%emt 0:01:06]} exd5 {[%emt 0:00:04]} 5. Bg5 {[%emt 0:00:07]} c6 {[%emt 0:00:04]} 6. e3 {[%emt 0:00:13]} Be7 {[%emt 0:00:06]} 7. Bd3 {[%emt 0:00:11]} Nbd7 {[%emt 0:00:51]} 8. Qc2 {[%emt 0:00:38]} h6 {[%emt 0:00:15]} 9. Bh4 {[%emt 0:01:02]} Nh5 {[%emt 0:00:21] is now debated instead of 9...0-0.} 10. Bxe7 {[%emt 0:02:34] D36: Queen's Gambit Declined: Exchange Variation: Main line (5 Bg5 c6 6 Qc2).} Qxe7 {[%emt 0:00:04]} 11. O-O-O {[%emt 0:00:10]} Nb6 {[%emt 0:01:38]} 12. h3 {[%emt 0:00:43] White has an edge.} Be6 {[%emt 0:03:27]} 13. Nf3 {[%emt 0:00:55]} Nf6 {[%emt 0:03:32][%cal Bh5f6,Bf6d7,Bd7b6][%mdl 32]} 14. Ne5 {[%emt 0:01:32]} O-O-O {[%emt 0:04:56]} 15. Kb1 {[%emt 0:05:30]} Kb8 {[%emt 0:02:42]} 16. f4 {[%emt 0:09:53]} Nfd7 {[%emt 0:06:26] [#]} 17. Nxc6+ $146 {[%emt 0:16:59]} ({Predecessor:} 17. g4 Nxe5 18. dxe5 d4 19. exd4 Rxd4 20. Ne4 Bd5 21. Rhe1 Bxe4 22. Bxe4 Rhd8 23. Rxd4 Rxd4 {1-0 (30) Begunov,K (2325)-Muhammed,S (1925) Chess.com INT 2021}) 17... bxc6 {[%emt 0:00:52]} 18. f5 {[%emt 0:00:10]} Bxf5 $1 {[%emt 0:10:16]} 19. Bxf5 {[%emt 0:00:13]} Nc4 {[%emt 0:03:05]} 20. Qa4 $2 {[%emt 0:07:10]} (20. Rhe1 $14 {stays ahead.}) 20... Ndb6 $17 {[%emt 0:02:48] Active counter play! Pair of Knights!} 21. Qb3 {[%emt 0:02:38]} ({Don't blunder} 21. Qxc6 $2 Qb4 22. b3 Rd6 23. Nxd5 Rxd5 $19) 21... Qxe3 {[%emt 0:01:37] [#] White must now prevent ...Nd2+.} 22. Na4 $2 {[%emt 0:01:52][%mdl 8192] White does not recover from this.} (22. Ka1 $17 {is a better chance.}) 22... Qxb3 $19 {[%emt 0:01:47]} 23. axb3 {[%emt 0:00:18]} Ne3 {[%emt 0:00:05][%csl LRd1,LRf5,LRg2]} 24. Nxb6 {[%emt 0:03:16]} axb6 {[%emt 0:00:14]} ({Inferior is} 24... Nxf5 25. Na4 $17) 25. Bd3 {[%emt 0:00:02]} Nxd1 {[%emt 0:00:09] Black is clearly winning.} 26. Rxd1 {[%emt 0:00:04][%mdl 4096] Endgame KRR-KRB} Rhe8 {[%emt 0:00:27]} 27. Rf1 {[%emt 0:00:12]} Re3 {[%emt 0:00:30]} 28. Kc2 {[%emt 0:00:06]} Rd7 {[%emt 0:00:10]} 29. b4 {[%emt 0:00:13]} b5 {[%emt 0:00:22]} 30. Kd2 {[%emt 0:00:08]} Rde7 {[%emt 0:00:25]} 31. Rf2 {[%emt 0:00:11]} g6 {[%emt 0:00:32]} 32. Rf6 {[%emt 0:00:36]} R3e6 {[%emt 0:00:06]} 33. Rf3 {[%emt 0:00:18]} Kc7 {[%emt 0:00:32]} 34. Rf1 {[%emt 0:00:36]} Kd7 {[%emt 0:01:07]} 35. Rf2 {[%emt 0:00:17]} Ke8 {[%emt 0:00:13]} 36. Rf3 {[%emt 0:00:19]} Kf8 {[%emt 0:00:07]} 37. h4 {[%emt 0:00:22]} h5 {[%emt 0:00:21]} 38. Rf1 {[%emt 0:00:28]} Kg7 {[%emt 0:00:08]} 39. Rf3 {[%emt 0:00:20]} Rf6 {[%emt 0:00:11] Weighted Error Value: White=0.51/Black=0.05 (flawless)} 0-1

[Event "Charlotte IM-C May 2022"]
[Site "Charlotte"]
[Date "2022.05.08"]
[Round "7.3"]
[White "Rorrer, Grayson"]
[Black "Andrianov, Nikolai"]
[Result "1/2-1/2"]
[ECO "B63"]
[WhiteElo "2204"]
[BlackElo "2317"]
[Annotator "TA"]
[PlyCount "55"]
[EventDate "2022.05.04"]
[EventType "tourn"]
[EventCountry "USA"]
[SourceTitle "playchess.com"]
[Source "ChessBase"]
[SourceQuality "1"]
[TimeControl "5400+30"]

{[%evp 18,55,83,75,79,73,91,87,87,81,80,80,86,61,63,69,89,88,93,73,58,31,39,39,39,39,39,40,40,38,32,0,41,32,41,46,42,0,32,0]} 1. e4 {[%emt 0:00:01]} c5 {[%emt 0:00:04]} 2. Nf3 {[%emt 0:00:05]} d6 {[%emt 0:00:03]} 3. d4 {[%emt 0:00:05]} cxd4 {[%emt 0:00:05]} 4. Nxd4 {[%emt 0:00:06]} Nf6 {[%emt 0:00:04]} 5. Nc3 {[%emt 0:00:06]} Nc6 {[%emt 0:00:03]} 6. Bg5 {[%emt 0:00:06]} e6 {[%emt 0:00:05]} 7. Qd2 {[%emt 0:00:06]} h6 {[%emt 0:00:07]} 8. Bxf6 {[%emt 0:00:06]} gxf6 {[%emt 0:00:02]} 9. O-O-O {[%emt 0:00:12][%cal Be1c1,Bc1b1,Bb1a1][%mdl 32]} a6 {[%emt 0:00:04]} 10. f4 {[%emt 0:00:12]} Qb6 {[%emt 0:00:26] B63: Sicilian: Richter-Rauzer: 7...Be7 and unusual Black 7th moves.} 11. Nxc6 {[%emt 0:00:22]} bxc6 {[%emt 0:00:27]} 12. Bc4 {[%emt 0:00:32]} Rb8 {[%emt 0:05:30][%csl Gb8][%cal Rb6b2] [#] White is better.} 13. Bb3 $1 {[%emt 0:00:32] [#] Active counter play!} a5 $146 {[%emt 0:03:21]} ({Predecessor:} 13... h5 14. Kb1 Be7 15. f5 Qc5 16. Rhf1 Qe5 17. Rf3 a5 18. Rh3 Rb4 19. g4 h4 {1-0 (43) Rogic,D (2280)-Sale,S (2365) Pula 1993}) 14. Kb1 {[%emt 0:05:02]} h5 {[%emt 0:00:54]} 15. g3 {[%emt 0:02:47]} Be7 {[%emt 0:06:43]} 16. Ka1 {[%emt 0:03:00]} Bd7 {[%emt 0:04:29]} 17. f5 {[%emt 0:07:45]} Rb7 {[%emt 0:09:36]} 18. fxe6 {[%emt 0:05:36]} fxe6 {[%emt 0:01:36]} 19. Rb1 {[%emt 0:00:25]} Qc5 {[%emt 0:05:01]} 20. a3 {[%emt 0:03:37]} Kd8 {[%emt 0:10:24]} 21. Ne2 {[%emt 0:01:48][%cal Bc3e2,Be2c1,Bc1d3][%mdl 32]} e5 {[%emt 0:00:54] Prevents Nf4.} 22. Rhf1 {[%emt 0:03:37]} Bg4 {[%emt 0:09:21]} 23. Ba2 {[%emt 0:06:04]} Kc7 {[%emt 0:01:05]} 24. Nc1 {[%emt 0:00:42]} a4 {[%emt 0:07:18] Inhibits Nb3.} 25. Nd3 {[%emt 0:06:07]} Qd4 {[%emt 0:00:35]} 26. Qa5+ {[%emt 0:07:09]} Kd7 {[%emt 0:35:13]} 27. Qd2 {[%emt 0:03:11]} Kc7 {[%emt 0:00:30]} 28. Qa5+ {[%emt 0:05:56] Weighted Error Value: White=0.09 (flawless) /Black=0.04 (flawless)} 1/2-1/2